[Event "7th Summer Cup 2024"]
[Site "Rhodes"]
[Date "2024.06.25"]
[Round "4.8"]
[White "Ingham, H William"]
[Black "Seres, Bela"]
[Result "0-1"]
[ECO "B13"]
[WhiteElo "1873"]
[BlackElo "2126"]
[Annotator "RC"]
[PlyCount "76"]
[EventDate "2024.06.21"]
[EventType "swiss"]
[EventCountry "GRE"]
[SourceTitle "playchess.com"]
[Source "ChessBase"]
[SourceQuality "1"]
[TimeControl "40/5400+30:900+30"]

1. d4 {[%emt 0:00:02]} d5 {[%emt 0:00:18]} 2. Bf4 {[%emt 0:00:08]} c5 {[%emt 0:00:21]} 3. e3 {[%emt 0:00:14]} cxd4 {[%emt 0:01:03]} 4. exd4 {[%emt 0:00:05]} Nc6 {[%emt 0:00:14]} 5. Nf3 {[%emt 1:32:31]} Bf5 {[%emt 0:03:37]} 6. Bd3 {[%emt 0:00:30]} Bxd3 {[%emt 0:07:08]} 7. Qxd3 {[%emt 0:00:30]} e6 {[%emt 0:04:24]} 8. O-O {[%emt 0:00:00]} Bd6 {[%emt 0:03:28]} 9. Bxd6 {[%emt 0:00:00]} Qxd6 {[%emt 0:00:03]} 10. Nc3 {[%emt 0:01:30]} Nge7 {[%emt 0:02:06]} 11. Rfe1 {[%emt 0:00:30]} a6 {[%emt 0:02:05]} 12. a4 {[%emt 0:00:30]} Nb4 {[%emt 0:03:29]} 13. Qd2 {[%emt 0:00:30]} Rc8 {[%emt 0:01:58]} 14. Ne5 {[%emt 0:00:00]} Ng6 {[%emt 0:01:05]} 15. Nd3 {[%emt 0:00:00]} O-O {[%emt 1:06:41]} 16. a5 {[%emt 0:01:30]} Rc7 {[%emt 0:00:00]} 17. Nc5 {[%emt 0:00:00]} Nc6 {[%emt 0:01:00]} 18. Nb3 {[%emt 0:01:00]} Rfc8 {[%emt 0:00:30]} 19. g3 {[%emt 0:00:30]} Nge7 {[%emt 0:00:30]} 20. f4 {[%emt 0:00:30]} Nf5 {[%emt 0:00:30]} 21. Na2 {[%emt 0:00:30]} Qd8 {[%emt 0:00:00]} 22. c3 {[%emt 0:00:00]} Nd6 {[%emt 0:01:00]} 23. Nac1 {[%emt 0:00:00]} Nc4 {[%emt 0:00:00]} 24. Qe2 {[%emt 0:00:00]} Re7 {[%emt 0:00:00]} 25. Nd3 {[%emt 0:00:00]} N4xa5 {[%emt 0:00:00]} 26. Nxa5 {[%emt 0:00:00]} Nxa5 {[%emt 0:00:00]} 27. f5 {[%emt 0:00:00]} Nc6 {[%emt 0:02:30]} 28. fxe6 {[%emt 0:03:30]} fxe6 {[%emt 0:00:30]} 29. Qg4 {[%emt 0:00:00]} Qd6 {[%emt 0:00:00]} 30. Nf4 {[%emt 0:00:00]} Rce8 {[%emt 0:01:00]} 31. Nd3 {[%emt 0:00:00]} e5 {[%emt 0:00:00]} 32. dxe5 {[%emt 0:00:00]} Nxe5 {[%emt 0:01:00]} 33. Nxe5 {[%emt 0:02:30]} Rxe5 {[%emt 0:00:00]} 34. Rxe5 {[%emt 0:00:00]} Qxe5 {[%emt 0:00:00]} 35. Rd1 {[%emt 0:01:00]} Qe3+ {[%emt 0:00:00]} 36. Kg2 {[%emt 0:00:30]} Qe2+ {[%emt 0:00:00]} 37. Kh3 {[%emt 0:00:00]} Re6 {[%emt 0:00:00]} 38. Rxd5 {[%emt 0:00:00]} Rh6+ {[%emt 0:00:00]} 0-1